lending/lending_fUSD_20240411
["ID","MTS","AMOUNT","RATE_DAILY","PERIOD"]
[322201656,1712869991146,-1960.92,0.00030684,2]
[322201657,1712869991161,-3993.87,0.00030684,2]
[322201658,1712869991176,-1940.4,0.00030684,2]
[322201659,1712869991192,-1144.44,0.00030684,2]
[322201660,1712869991208,-30065.72,0.00030684,2]
[322201661,1712869991222,-1318.07,0.00030684,2]
[322201662,1712869991237,-3922.38,0.00030684,2]
[322201663,1712869991252,-500.0,0.00030684,2]
[322201664,1712869991268,-1507.79,0.00030684,2]
[322201665,1712869991282,-7272.96,0.00030684,2]
[322201666,1712869991298,-2185.46,0.00030684,2]
[322201667,1712869991312,-500.0,0.00030684,2]
[322201668,1712869991328,-1894.92,0.00030684,2]
[322201669,1712869991342,-500.0,0.00030684,2]
[322201670,1712869991358,-739.67,0.00030684,2]
[322201671,1712869991372,-2576.43,0.00030684,2]
[322201672,1712869991387,-500.0,0.00030684,2]
[322201673,1712869991405,-752.22,0.00030684,2]
[322201674,1712869991418,-2674.56,0.00030684,2]
[322201675,1712869991433,-918.8,0.00030684,2]
[322201676,1712869991448,-548.63,0.00030684,2]
[322201677,1712869991463,-636.15,0.00030684,2]
[322201678,1712869991481,-729.18,0.00030684,2]
[322201679,1712869991498,-763.21,0.00030684,2]
[322201680,1712869991513,-3486.04,0.00030684,2]
[322201681,1712869991529,-8034.42,0.00030684,2]
[322201682,1712869991544,-3850.53,0.00030684,2]
[322201683,1712869991560,-1687.56,0.00030684,2]
[322201684,1712869991575,-500.0,0.00030684,2]
[322201685,1712869991591,-4101.12,0.00030684,2]
[322201686,1712869991604,-565.51,0.00030684,2]
[322201687,1712869991619,-2084.11,0.00030684,2]
[322201688,1712869991633,-544.26,0.00030684,2]
[322201689,1712869991647,-544.38,0.00030684,2]
[322201690,1712869991664,-1782.79,0.00030684,2]
[322201691,1712869991679,-3404.95,0.00030684,2]
[322201692,1712869991694,-510.02,0.00030684,2]
[322201693,1712869991708,-500.0,0.00030684,2]
[322201694,1712869991721,-500.0,0.00030684,2]
[322201695,1712869991735,-2028.74,0.00030684,2]
[322201696,1712869991749,-500.0,0.00030684,2]
[322201697,1712869991764,-500.0,0.00030684,2]
[322201698,1712869991780,-3939.9,0.00030684,2]
[322201699,1712869991795,-733.75,0.00030684,2]
[322201700,1712869991810,-5901.28,0.00030684,2]
[322201701,1712869991825,-2166.88,0.00030684,2]
[322201702,1712869991840,-500.0,0.00030684,2]
[322201703,1712869991854,-722.6,0.00030684,2]
[322201704,1712869991867,-538.95,0.00030684,2]
[322201705,1712869991881,-3339.86,0.00030684,2]
[322201706,1712869991896,-1774.88,0.00030684,2]
[322201707,1712869991911,-500.0,0.00030684,2]
[322201708,1712869991926,-896.99,0.00030684,2]
[322201709,1712869991942,-619.71921938,0.00030712,30]
[322201710,1712869991956,-150.0,0.00030723,2]
[322201711,1712869991969,-150.0,0.00030803,2]
[322201712,1712869991984,-619.71921938,0.00030849,30]
[322201713,1712869991998,-150.0,0.00030865,2]
[322201714,1712869992013,-150.0,0.0003095,2]
[322201715,1712869992026,-7384.44,0.00030956,5]
[322201716,1712869992040,-507.89,0.00030958,2]
[322201717,1712869992054,-590.86,0.00030958,2]
[322201718,1712869992069,-805.44,0.00030958,2]
[322201719,1712869992082,-629.54,0.00030958,2]
[322201720,1712869992095,-500.0,0.00030958,2]
[322201721,1712869992108,-500.0,0.00030958,2]
[322201722,1712869992121,-500.0,0.00030958,2]
[322201723,1712869992135,-765.12,0.00030958,2]
[322201724,1712869992150,-500.0,0.00030958,2]
[322201725,1712869992164,-673.55,0.00030958,2]
[322201726,1712869992181,-500.0,0.00030958,2]
[322201727,1712869992197,-500.0,0.00030958,2]
[322201728,1712869992216,-500.0,0.00030958,2]
[322201729,1712869992231,-500.0,0.00030958,2]
[322201730,1712869992245,-1055.22,0.00030958,2]
[322201731,1712869992260,-838.26,0.00030958,2]
[322201732,1712869992274,-513.12,0.00030958,2]
[322201733,1712869992288,-500.0,0.00030958,2]
[322201734,1712869992303,-561.16,0.00030958,2]
[322201735,1712869992317,-520.88,0.00030958,2]
[322201736,1712869992331,-500.0,0.00030958,2]
[322201737,1712869992345,-532.8,0.00030958,2]
[322201738,1712869992359,-717.66,0.00030958,2]
[322201739,1712869992685,-956.54,0.00030958,2]
[322201740,1712869992698,-500.0,0.00030958,2]
[322201741,1712869992708,-527.16,0.00030958,2]
[322201742,1712869992718,-500.0,0.00030958,2]
[322201743,1712869992727,-583.53,0.00030958,2]
[322201744,1712869992737,-500.0,0.00030958,2]
[322201745,1712869992746,-500.0,0.00030958,2]
[322201746,1712869992756,-794.27,0.00030958,2]
[322201747,1712869992767,-775.81,0.00030958,2]
[322201748,1712869992777,-181.44718054,0.00030958,2]
[322201749,1712869992787,-1268.53,0.00030958,2]
[322201750,1712869992798,-579.81,0.00030958,2]
[322201751,1712869992807,-683.65,0.00030958,2]
[322201752,1712869992818,-500.0,0.00030958,2]
[322201753,1712869992830,-500.0,0.00030958,2]
[322201754,1712869992840,-500.0,0.00030958,2]
[322201755,1712869992850,-1283.53,0.00030958,2]
[322201756,1712869992861,-500.0,0.00030958,2]
[322201757,1712869992873,-1242.22,0.00030958,2]
[322201758,1712869992883,-686.6,0.00030958,2]
[322201759,1712869992893,-610.16,0.00030958,2]
[322201760,1712869992902,-964.51,0.00030958,2]
[322201761,1712869992911,-552.23,0.00030958,2]
[322201762,1712869992921,-500.0,0.00030958,2]
[322201763,1712869992932,-500.0,0.00030958,2]
[322201764,1712869992942,-993.58,0.00030958,2]
[322201765,1712869992950,-500.0,0.00030958,2]
[322201766,1712869992960,-675.23,0.00030958,2]
[322201767,1712869992971,-1308.49,0.00030958,2]
[322201768,1712869992981,-703.03,0.00030958,2]
[322201769,1712869992991,-564.56,0.00030958,2]
[322201770,1712869993004,-561.9,0.00030958,2]
[322201771,1712869993013,-560.79,0.00030958,2]
[322201772,1712869993023,-1067.51,0.00030958,2]
[322201773,1712869993033,-598.24,0.00030958,2]
[322201774,1712869993043,-691.29,0.00030958,2]
[322201775,1712869993053,-500.0,0.00030958,2]
[322201776,1712869993064,-500.0,0.00030958,2]
[322201777,1712869993073,-500.0,0.00030958,2]
[322201778,1712869993082,-645.96,0.00030958,2]
[322201779,1712869993092,-704.14,0.00030958,2]
[322201780,1712869993103,-1172.44,0.00030958,2]
[322201781,1712869993112,-1403.78,0.00030958,2]
[322201782,1712869993122,-820.3,0.00030958,2]
[322201783,1712869993131,-868.58,0.00030958,2]
[322201784,1712869993141,-1352.31,0.00030958,2]
[322201785,1712869993151,-1263.1,0.00030958,2]
[322201786,1712869993160,-1192.54,0.00030958,2]
[322201787,1712869993169,-1391.45,0.00030958,2]
[322201788,1712869993179,-811.44,0.00030958,2]
[322201789,1712869993188,-676.3,0.00030958,2]
[322201790,1712869993198,-609.69,0.00030958,2]
[322201791,1712869993207,-540.39,0.00030958,2]
[322201792,1712869993216,-1771.03,0.00030958,2]
[322201793,1712869993225,-541.31,0.00030958,2]
[322201794,1712869993234,-1468.06,0.00030958,2]
[322201795,1712869993243,-862.27,0.00030958,2]
[322201796,1712869993252,-1183.63,0.00030958,2]
[322201797,1712869993261,-500.0,0.00030958,2]
[322201798,1712869993271,-839.54,0.00030958,2]
[322201799,1712869993280,-500.0,0.00030958,2]
[322201800,1712869993290,-500.0,0.00030958,2]
[322201801,1712869993300,-500.0,0.00030958,2]
[322201802,1712869993310,-1787.12,0.00030958,2]
[322201803,1712869993321,-500.0,0.00030958,2]
[322201804,1712869993330,-1253.73,0.00030958,2]
[322201805,1712869993340,-735.73,0.00030958,2]
[322201806,1712869993349,-500.0,0.00030958,2]
[322201807,1712869993359,-1318.44,0.00030958,2]
[322201808,1712869993368,-700.59,0.00030958,2]
[322201809,1712869993379,-1495.11,0.00030958,2]
[322201810,1712869993388,-758.95,0.00030958,2]
[322201811,1712869993403,-521.21,0.00030958,2]
[322201812,1712869993412,-1654.67,0.00030958,2]
[322201813,1712869993422,-638.47,0.00030958,2]
[322201814,1712869993431,-1164.2,0.00030958,2]
[322201815,1712869993441,-500.0,0.00030958,2]
[322201816,1712869993450,-949.05,0.00030958,2]
[322201817,1712869993460,-1096.04,0.00030958,2]
[322201818,1712869993470,-777.64,0.00030958,2]
[322201819,1712869993480,-646.84,0.00030958,2]
[322201820,1712869993490,-958.72,0.00030958,2]
[322201821,1712869993499,-683.7,0.00030958,2]
[322201822,1712869993509,-897.54,0.00030958,2]
[322201823,1712869993519,-684.68,0.00030958,2]
[322201824,1712869993529,-500.0,0.00030958,2]
[322201825,1712869993539,-543.38,0.00030958,2]
[322201826,1712869993548,-809.17,0.00030958,2]
[322201827,1712869993558,-698.14,0.00030958,2]
[322201828,1712869993570,-1067.08,0.00030958,2]
[322201829,1712869993581,-1021.38,0.00030958,2]
[322201830,1712869993590,-784.4,0.00030958,2]
[322201831,1712869993599,-1207.29,0.00030958,2]
[322201832,1712869993609,-853.95,0.00030958,2]
[322201833,1712869993618,-1154.75,0.00030958,2]
[322201834,1712869993627,-1500.39,0.00030958,2]
[322201835,1712869993638,-1102.48,0.00030958,2]
[322201836,1712869993647,-1684.95,0.00030958,2]
[322201837,1712869993657,-864.47,0.00030958,2]
[322201838,1712869993667,-1050.08,0.00030958,2]
[322201839,1712869993676,-1060.45,0.00030958,2]
[322201840,1712869993687,-727.49,0.00030958,2]
[322201841,1712869993696,-534.42,0.00030958,2]
[322201842,1712869993705,-500.0,0.00030958,2]
[322201843,1712869993715,-598.73,0.00030958,2]
[322201844,1712869993724,-500.0,0.00030958,2]
[322201845,1712869993734,-1013.17,0.00030958,2]
[322201846,1712869993743,-182.42029951,0.00030958,2]
[322201847,1712869993752,-552.15,0.00030958,2]
[322201848,1712869993761,-722.75,0.00030958,2]
[322201849,1712869993770,-585.74,0.00030958,2]
[322201850,1712869993779,-1454.96,0.00030958,2]
[322201851,1712869993789,-600.91,0.00030958,2]
[322201852,1712869993798,-627.17,0.00030958,2]
[322201853,1712869993807,-1870.66,0.00030958,2]
[322201854,1712869993816,-921.94,0.00030958,2]
[322201855,1712869993825,-1288.35,0.00030958,2]
[322201856,1712869993834,-500.0,0.00030958,2]
[322201857,1712869993844,-670.72,0.00030958,2]
[322201858,1712869993853,-1052.23,0.00030958,2]
[322201859,1712869993862,-1720.31,0.00030958,2]
[322201860,1712869993871,-500.0,0.00030958,2]
[322201861,1712869993880,-2622.22,0.00030958,2]
[322201862,1712869993889,-1850.14,0.00030958,2]
[322201863,1712869993898,-500.0,0.00030958,2]
[322201864,1712869993908,-500.0,0.00030958,2]
[322201865,1712869993917,-500.0,0.00030958,2]
[322201866,1712869993927,-869.29,0.00030958,2]
[322201867,1712869993937,-933.06,0.00030958,2]
[322201868,1712869993947,-722.11,0.00030958,2]
[322201869,1712869993956,-500.0,0.00030958,2]
[322201870,1712869993965,-1172.68,0.00030958,2]
[322201871,1712869993976,-500.0,0.00030958,2]
[322201872,1712869993985,-500.0,0.00030958,2]
[322201873,1712869993995,-1203.46,0.00030958,2]
[322201874,1712869994005,-993.8,0.00030958,2]
[322201875,1712869994016,-500.0,0.00030958,2]
[322201876,1712869994026,-500.0,0.00030958,2]
[322201877,1712869994035,-150.0,0.00030958,2]
[322201878,1712869994045,-1318.86,0.00030958,2]
[322201879,1712869994055,-879.12,0.00030958,2]
[322201880,1712869994065,-1664.67,0.00030958,2]
[322201881,1712869994074,-500.0,0.00030958,2]
[322201882,1712869994084,-553.15,0.00030958,2]
[322201883,1712869994093,-916.81,0.00030958,2]
[322201884,1712869994103,-923.4,0.00030958,2]
[322201885,1712869994112,-1597.09,0.00030958,2]
[322201886,1712869994121,-463.74828556,0.00030958,2]
[322201887,1712869994130,-500.0,0.00030958,2]
[322201888,1712869994140,-500.0,0.00030958,2]
[322201889,1712869994149,-500.0,0.00030958,2]
[322201890,1712869994159,-1225.4,0.00030958,2]
[322201891,1712869994169,-1736.6,0.00030958,2]
[322201892,1712869994179,-1687.78,0.00030958,2]
[322201893,1712869994189,-533.65,0.00030958,2]
[322201894,1712869994199,-892.21,0.00030958,2]
[322201895,1712869994209,-698.09,0.00030958,2]
[322201896,1712869994220,-500.0,0.00030958,2]
[322201897,1712869994229,-1618.97,0.00030958,2]
[322201898,1712869994240,-500.0,0.00030958,2]
[322201899,1712869994250,-500.0,0.00030958,2]
[322201900,1712869994261,-998.14,0.00030958,2]
[322201901,1712869994271,-500.0,0.00030958,2]
[322201902,1712869994281,-1890.51,0.00030958,2]
[322201903,1712869994292,-827.22,0.00030958,2]
[322201904,1712869994301,-500.0,0.00030958,2]
[322201905,1712869994312,-156.05428924,0.00030958,2]
[322201906,1712869994321,-500.0,0.00030958,2]
[322201907,1712869994330,-1646.03,0.00030958,2]
[322201908,1712869994339,-911.48,0.00030958,2]
[322201909,1712869994348,-767.01,0.00030958,2]
[322201910,1712869994358,-1116.76,0.00030958,2]
[322201911,1712869994367,-570.82,0.00030958,2]
[322201912,1712869994376,-1022.77,0.00030958,2]
[322201913,1712869994386,-831.5,0.00030958,2]
[322201914,1712869994399,-680.97,0.00030958,2]
[322201915,1712869994409,-500.0,0.00030958,2]
[322201916,1712869994417,-752.98,0.00030958,2]
[322201917,1712869994427,-500.0,0.00030958,2]
[322201918,1712869994440,-1499.79,0.00030958,2]
[322201919,1712869994449,-814.1,0.00030958,2]
[322201920,1712869994458,-7400.19,0.00030958,2]
[322201921,1712869994470,-1023.14,0.00030958,2]
[322201922,1712869994480,-700.72,0.00030958,2]
[322201923,1712869994489,-500.0,0.00030958,2]
[322201924,1712869994499,-950.09,0.00030958,2]
[322201925,1712869994508,-1871.77,0.00030958,2]
[322201926,1712869994517,-3724.71,0.00030958,2]
[322201927,1712869994526,-5395.14,0.00030958,2]
[322201928,1712869994535,-1464.27,0.00030958,2]
[322201929,1712869994544,-978.66,0.00030958,2]
[322201930,1712869994553,-500.0,0.00030958,2]
[322201931,1712869994562,-693.58,0.00030958,2]
[322201932,1712869994571,-984.51,0.00030958,2]
[322201933,1712869994581,-4620.04,0.00030958,2]
[322201934,1712869994590,-1300.92,0.00030958,2]
[322201935,1712869994599,-934.17,0.00030958,2]
[322201936,1712869994608,-1543.03,0.00030958,2]
[322201937,1712869994618,-5425.41,0.00030958,2]
[322201938,1712869994627,-500.0,0.00030958,2]
[322201939,1712869994637,-1214.31,0.00030958,2]
[322201940,1712869994646,-788.68,0.00030958,2]
[322201941,1712869994655,-613.33,0.00030958,2]
[322201942,1712869994665,-500.0,0.00030958,2]
[322201943,1712869994674,-375.94306877,0.00030958,2]
[322201944,1712869994685,-827.37,0.00030958,2]
[322201945,1712869994694,-1593.55,0.00030958,2]
[322201946,1712869994703,-1948.7,0.00030958,2]
[322201947,1712869994712,-500.0,0.00030958,2]
[322201948,1712869994721,-9749.83,0.00030958,2]
[322201949,1712869994730,-2131.76,0.00030958,2]
[322201950,1712869994739,-500.0,0.00030958,2]
[322201951,1712869994749,-1560.14,0.00030958,2]
[322201952,1712869994758,-1518.32,0.00030958,2]
[322201953,1712869994767,-661.44,0.00030958,2]
[322201954,1712869994777,-1413.3,0.00030958,2]
[322201955,1712869994786,-5230.96,0.00030958,2]
[322201956,1712869994795,-2479.01,0.00030958,2]
[322201957,1712869994804,-500.0,0.00030958,2]
[322201958,1712869994812,-1464.2,0.00030958,2]
[322201959,1712869994822,-1527.36,0.00030958,2]
[322201960,1712869994831,-3647.95,0.00030958,2]
[322201961,1712869994840,-1358.23,0.00030958,2]
[322201962,1712869994849,-1020.16,0.00030958,2]
[322201963,1712869994858,-668.8,0.00030958,2]
[322201964,1712869994867,-11162.19,0.00030958,2]
[322201965,1712869994876,-3874.31,0.00030958,2]
[322201966,1712869994885,-41084.78,0.00030958,2]
[322201967,1712869994894,-500.0,0.00030958,2]
[322201968,1712869994903,-740.63,0.00030958,2]
[322201969,1712869994912,-500.0,0.00030958,2]
[322201970,1712869994922,-500.0,0.00030958,2]
[322201971,1712869994933,-548.57,0.00030958,2]
[322201972,1712869994942,-7785.82,0.00030958,2]
[322201973,1712869994952,-1513.09,0.00030958,2]
[322201974,1712869994961,-567.17,0.00030958,2]
[322201975,1712869994970,-3631.93,0.00030958,2]
[322201976,1712869994980,-8421.98,0.00030958,2]
[322201977,1712869994989,-3207.81,0.00030958,2]
[322201978,1712869994998,-2311.09,0.00030958,2]
[322201979,1712869995007,-500.0,0.00030958,2]
[322201980,1712869995016,-12662.48,0.00030958,2]
[322201981,1712869995026,-921.98,0.00030958,2]
[322201982,1712869995035,-266.56347534,0.00030958,2]
[322201983,1712869995044,-1525.4,0.00030958,2]
[322201984,1712869995053,-1851.69,0.00030958,2]
[322201985,1712869995062,-3131.37,0.00030958,2]
[322201986,1712869995071,-875.02,0.00030958,2]
[322201987,1712869995080,-7402.21,0.00030958,2]
[322201988,1712869995090,-2709.87,0.00030958,2]
[322201989,1712869995099,-500.0,0.00030958,2]
[322201990,1712869995109,-1503.27,0.00030958,2]
[322201991,1712869995120,-2499.54,0.00030958,2]
[322201992,1712869995129,-650.21,0.00030958,2]
[322201993,1712869995140,-5388.34,0.00030958,2]
[322201994,1712869995150,-1676.04,0.00030958,2]
[322201995,1712869995161,-2309.38,0.00030958,2]
[322201996,1712869995171,-643.01,0.00030958,2]
[322201997,1712869995182,-5653.29,0.00030958,2]
[322201998,1712869995193,-928.47,0.00030958,2]
[322201999,1712869995205,-1703.86,0.00030958,2]
[322202000,1712869995215,-790.7,0.00030958,2]
[322202001,1712869995225,-2381.75,0.00030958,2]
[322202002,1712869995235,-852.74,0.00030958,2]
[322202003,1712869995245,-2994.14,0.00030958,2]
[322202004,1712869995254,-500.0,0.00030958,2]
[322202005,1712869995264,-4680.33,0.00030958,2]
[322202006,1712869995273,-21256.33,0.00030958,2]
[322202007,1712869995283,-2204.86,0.00030958,2]
[322202008,1712869995292,-989.07,0.00030958,2]
[322202009,1712869995301,-5675.36,0.00030958,2]
[322202010,1712869995312,-660.51,0.00030958,2]
[322202011,1712869995322,-2867.21,0.00030958,2]
[322202012,1712869995333,-1346.35,0.00030958,2]
[322202013,1712869995344,-500.0,0.00030958,2]
[322202014,1712869995353,-2960.74,0.00030958,2]
[322202015,1712869995363,-887.19,0.00030958,2]
[322202016,1712869995373,-1179.12,0.00030958,2]
[322202017,1712869995382,-1283.97,0.00030958,2]
[322202018,1712869995393,-872.68,0.00030958,2]
[322202019,1712869995408,-1502.33,0.00030958,2]
[322202020,1712869995419,-10128.26,0.00030958,2]
[322202021,1712869995428,-683.97,0.00030958,2]
[322202022,1712869995438,-623.58,0.00030958,2]
[322202023,1712869995448,-500.0,0.00030958,2]
[322202024,1712869995457,-1185.71,0.00030958,2]
[322202025,1712869995466,-1427.1,0.00030958,2]
[322202026,1712869995478,-2367.24,0.00030958,2]
[322202027,1712869995489,-500.0,0.00030958,2]
[322202028,1712869995501,-2143.26,0.00030958,2]
[322202029,1712869995514,-531.19321768,0.00030958,2]
[322202030,1712869995525,-1106.87,0.00030958,2]
[322202031,1712869995535,-2686.26,0.00030958,2]
[322202032,1712869995545,-2721.81,0.00030958,2]
[322202033,1712869995554,-3567.1,0.00030958,2]
[322202034,1712869995563,-3548.97,0.00030958,2]
[322202035,1712869995573,-19344.8,0.00030958,2]
[322202036,1712869995582,-1844.22,0.00030958,2]
[322202037,1712869995591,-537.03,0.00030958,2]
[322202038,1712869995600,-1228.02,0.00030958,2]
[322202039,1712869995609,-3053.42,0.00030958,2]
[322202040,1712869995618,-4239.16,0.00030958,2]
[322202041,1712869995628,-1745.12,0.00030958,2]
[322202042,1712869995637,-3035.53,0.00030958,2]
[322202043,1712869995647,-4808.47,0.00030958,2]
[322202044,1712869995656,-2664.5,0.00030958,2]
[322202045,1712869995665,-1373.93,0.00030958,2]
[322202046,1712869995674,-505.74,0.00030958,2]
[322202047,1712869995684,-738.07,0.00030958,2]
[322202048,1712869995693,-1109.77,0.00030958,2]
[322202049,1712869995702,-3190.86,0.00030958,2]
[322202050,1712869995711,-2221.72,0.00030958,2]
[322202051,1712869995720,-2263.75,0.00030958,2]
[322202052,1712869995729,-17424.44,0.00030958,2]
[322202053,1712869995739,-1128.64,0.00030958,2]
[322202054,1712869995748,-1502.24,0.00030958,2]
[322202055,1712869995757,-612.74,0.00030958,2]
[322202056,1712869995766,-534.86,0.00030958,2]
[322202057,1712869995775,-17072.27,0.00030958,2]
[322202058,1712869995785,-3052.22,0.00030958,2]
[322202059,1712869995794,-500.0,0.00030958,2]
[322202060,1712869995803,-3640.47,0.00030958,2]
[322202061,1712869995813,-1957.97,0.00030958,2]
[322202062,1712869995822,-500.0,0.00030958,2]
[322202063,1712869995831,-955.9,0.00030958,2]
[322202064,1712869995841,-500.0,0.00030958,2]
[322202065,1712869995850,-500.0,0.00030958,2]
[322202066,1712869995859,-3659.25,0.00030958,2]
[322202067,1712869995868,-5766.3,0.00030958,2]
[322202068,1712869995877,-3575.16,0.00030958,2]
[322202069,1712869995886,-711.78,0.00030958,2]
[322202070,1712869996104,-500.0,0.00030958,2]
[322202071,1712869996116,-7639.5,0.00030958,2]
[322202072,1712869996125,-1392.31,0.00030958,2]
[322202073,1712869996134,-7389.58,0.00030958,2]
[322202074,1712869996143,-3014.69,0.00030958,2]
[322202075,1712869996153,-2191.02,0.00030958,2]
[322202076,1712869996162,-5336.03,0.00030958,2]
[322202077,1712869996171,-4291.51,0.00030958,2]
[322202078,1712869996180,-1051.14,0.00030958,2]
[322202079,1712869996190,-604.03,0.00030958,2]
[322202080,1712869996199,-52708.74,0.00030958,2]
[322202081,1712869996209,-3260.75,0.00030958,2]
[322202082,1712869996218,-5115.15,0.00030958,2]
[322202083,1712869996227,-882.87,0.00030958,2]
[322202084,1712869996238,-5854.93,0.00030958,2]
[322202085,1712869996247,-8061.26,0.00030958,2]
[322202086,1712869996256,-916.85,0.00030958,2]
[322202087,1712869996265,-745.2,0.00030958,2]
[322202088,1712869996275,-7112.46,0.00030958,2]
[322202089,1712869996285,-6099.37,0.00030958,2]
[322202090,1712869996294,-1872.85,0.00030958,2]
[322202091,1712869996305,-1834.17,0.00030958,2]
[322202092,1712869996315,-5187.78,0.00030958,2]
[322202093,1712869996325,-1268.14,0.00030958,2]
[322202094,1712869996334,-1960.92,0.00030958,2]
[322202095,1712869996344,-3993.87,0.00030958,2]
[322202096,1712869996353,-1940.4,0.00030958,2]
[322202097,1712869996363,-1144.44,0.00030958,2]
[322202098,1712869996373,-30065.72,0.00030958,2]
[322202099,1712869996382,-1318.07,0.00030958,2]
[322202100,1712869996393,-3922.38,0.00030958,2]
[322202101,1712869996406,-500.0,0.00030958,2]
[322202102,1712869996416,-1507.79,0.00030958,2]
[322202103,1712869996424,-7272.96,0.00030958,2]
[322202104,1712869996435,-2185.46,0.00030958,2]
[322202105,1712869996446,-500.0,0.00030958,2]
[322202106,1712869996455,-1894.92,0.00030958,2]
[322202107,1712869996465,-500.0,0.00030958,2]
[322202108,1712869996476,-739.67,0.00030958,2]
[322202109,1712869996487,-2576.43,0.00030958,2]
[322202110,1712869996497,-500.0,0.00030958,2]
[322202111,1712869996507,-752.22,0.00030958,2]
[322202112,1712869996516,-548.63,0.00030958,2]
[322202113,1712869996526,-2674.56,0.00030958,2]
[322202114,1712869996535,-918.8,0.00030958,2]
[322202115,1712869996545,-636.15,0.00030958,2]
[322202116,1712869996555,-729.18,0.00030958,2]
[322202117,1712869996565,-763.21,0.00030958,2]
[322202118,1712869996575,-3486.04,0.00030958,2]
[322202119,1712869996585,-8034.42,0.00030958,2]
[322202120,1712869996595,-3850.53,0.00030958,2]
[322202121,1712869996604,-1687.56,0.00030958,2]
[322202122,1712869996614,-500.0,0.00030958,2]
[322202123,1712869996624,-4101.12,0.00030958,2]
[322202124,1712869996633,-565.51,0.00030958,2]
[322202125,1712869996643,-2084.11,0.00030958,2]
[322202126,1712869996652,-544.26,0.00030958,2]
[322202127,1712869996662,-544.38,0.00030958,2]
[322202128,1712869996672,-1782.79,0.00030958,2]
[322202129,1712869996681,-3404.95,0.00030958,2]
[322202130,1712869996693,-510.02,0.00030958,2]
[322202131,1712869996702,-500.0,0.00030958,2]
[322202132,1712869996712,-500.0,0.00030958,2]
[322202133,1712869996721,-2028.74,0.00030958,2]
[322202134,1712869996731,-500.0,0.00030958,2]
[322202135,1712869996741,-500.0,0.00030958,2]
[322202136,1712869996750,-3939.9,0.00030958,2]
[322202137,1712869996759,-733.75,0.00030958,2]
[322202138,1712869996769,-5901.28,0.00030958,2]
[322202139,1712869996778,-2166.88,0.00030958,2]
[322202140,1712869996789,-500.0,0.00030958,2]
[322202141,1712869996799,-722.6,0.00030958,2]
[322202142,1712869996808,-538.95,0.00030958,2]
[322202143,1712869996817,-3339.86,0.00030958,2]
[322202144,1712869996827,-1774.88,0.00030958,2]
[322202145,1712869996837,-619.71921938,0.00030986,30]
[322202146,1712869996846,-100000.0,0.00031,11]
[322202147,1712869996855,-150.0,0.00031034,2]
[322202148,1712869996864,-99885.61,0.00031042,6]
[322202149,1712869996874,-154.06513536,0.00031046,2]
[322202150,1712869996883,-150.0,0.00031056,2]
[322202151,1712869996892,-150.0,0.00031069,2]
[322202152,1712869996902,-619.71921938,0.00031096,30]
[322202153,1712869996911,-150.0,0.00031117,2]
[322202154,1712869996920,-150.0,0.00031134,2]
[322202155,1712869996930,-157.041205,0.00031148,21]